fUSD/lending_fUSD_20251112
["ID","MTS","AMOUNT","RATE_DAILY","PERIOD"]
[393714172,1762943441087,-500.0,0.00038328,15]
[393714173,1762943441097,-500.0,0.00038328,15]
[393714174,1762943441107,-500.0,0.00038328,15]
[393714175,1762943441116,-500.0,0.00038328,15]
[393714176,1762943441127,-500.0,0.00038328,15]
[393714177,1762943441138,-500.0,0.00038328,15]
[393714178,1762943441149,-500.0,0.00038328,15]
[393714179,1762943441159,-500.0,0.00038328,15]
[393714180,1762943441169,-500.0,0.00038328,15]
[393714181,1762943441179,-264.8720059,0.00038328,15]
[393714182,1762943441191,-500.0,0.00038328,15]
[393714183,1762943441201,-500.0,0.00038328,15]
[393714184,1762943441211,-500.0,0.00038328,15]
[393714185,1762943441220,-500.0,0.00038328,15]
[393714186,1762943441230,-500.0,0.00038328,15]
[393714187,1762943441239,-500.0,0.00038328,15]
[393714188,1762943441249,-500.0,0.00038328,15]
[393714189,1762943441259,-500.0,0.00038328,15]
[393714190,1762943441268,-500.0,0.00038328,15]
[393714191,1762943441278,-420000.0,0.0003833,2]
[393714192,1762943441287,-4082.27230739,0.0003836,2]
[393714193,1762943441296,-500.0,0.0003836,30]
[393714194,1762943441306,-500.7937568,0.00038373,5]
[393714195,1762943441315,-164.66375491,0.00038373,5]
[393714196,1762943441324,-600.0,0.00038379,7]
[393714197,1762943441334,-800.0,0.00038379,7]
[393714198,1762943441343,-153.0,0.00038429,120]
[393714199,1762943441352,-153.0,0.00038429,120]
[393714200,1762943441362,-153.0,0.00038429,120]
[393714201,1762943441372,-153.0,0.00038429,120]
[393714202,1762943441381,-153.0,0.00038429,120]
[393714203,1762943441390,-153.0,0.00038429,120]
[393714204,1762943441400,-162.0,0.00038449,120]
[393714205,1762943441410,-4082.27230739,0.00038453,2]
[393714206,1762943441419,-26172.8711711,0.00038542,2]
[393714207,1762943441428,-4082.27230739,0.00038547,2]
[393714208,1762943441439,-1061.29459648,0.00038551,2]
[393714209,1762943441452,-1220.9,0.000386,2]
[393714210,1762943441462,-416.0,0.00038601,7]
[393714211,1762943441471,-500.0,0.00038604,30]
[393714212,1762943441480,-151.0,0.00038629,90]
[393714213,1762943441490,-500.0,0.00038629,90]
[393714214,1762943441500,-500.0,0.00038629,90]
[393714215,1762943441509,-156.587,0.00038629,90]
[393714216,1762943441521,-500.0,0.00038629,90]
[393714217,1762943441531,-162.380719,0.00038629,90]
[393714218,1762943441541,-500.0,0.00038629,90]
[393714219,1762943441551,-168.3888056,0.00038629,90]
[393714220,1762943441561,-500.0,0.00038629,90]
[393714221,1762943441570,-500.0,0.00038629,90]
[393714222,1762943441583,-174.61919141,0.00038629,90]
[393714223,1762943441592,-151.0,0.00038629,90]
[393714224,1762943441602,-500.0,0.00038629,90]
[393714225,1762943441611,-500.0,0.00038629,90]
[393714226,1762943441625,-181.08010149,0.00038629,90]
[393714227,1762943441634,-151.0,0.00038629,90]
[393714228,1762943441643,-500.0,0.00038629,90]
[393714229,1762943441653,-187.78006525,0.00038629,90]
[393714230,1762943441662,-500.0,0.00038629,90]
[393714231,1762943441671,-151.0,0.00038629,90]
[393714232,1762943441680,-500.0,0.00038629,90]
[393714233,1762943441691,-184.86097967,0.00038629,90]
[393714234,1762943441701,-500.0,0.00038629,90]
[393714235,1762943441710,-151.0,0.00038629,90]
[393714236,1762943441720,-500.0,0.00038629,90]
[393714237,1762943441729,-500.0,0.00038629,90]
[393714238,1762943441738,-151.0,0.00038629,90]
[393714239,1762943441748,-500.0,0.00038629,90]
[393714240,1762943441757,-151.0,0.00038629,90]
[393714241,1762943441767,-500.0,0.00038629,90]
[393714242,1762943441776,-500.0,0.00038629,90]
[393714243,1762943441786,-151.0,0.00038629,90]
[393714244,1762943441795,-500.0,0.00038629,90]
[393714245,1762943441804,-151.0,0.00038629,90]
[393714246,1762943441814,-151.0,0.00038629,90]
[393714247,1762943441827,-168.0,0.00038634,7]
[393714248,1762943441836,-4082.27230739,0.0003864,2]
[393714249,1762943441846,-1061.29459648,0.00038644,2]
[393714250,1762943441857,-2143.0,0.00038724,2]
[393714251,1762943441866,-574.0,0.00038724,2]
[393714252,1762943441875,-6482.0,0.00038724,2]
[393714253,1762943441885,-608.0,0.00038724,2]
[393714254,1762943441895,-4082.27230739,0.00038734,2]
[393714255,1762943441904,-1061.29459648,0.00038737,2]
[393714256,1762943441913,-7267.855707,0.00038739,2]
[393714257,1762943441923,-7927.844128,0.00038739,2]
[393714258,1762943441932,-150.0,0.000388,120]
[393714259,1762943441942,-179.3763009,0.0003881,2]
[393714260,1762943441951,-4082.27230739,0.00038827,2]
[393714261,1762943441960,-1061.29459648,0.0003883,2]
[393714262,1762943441970,-532.71,0.00038849,2]
[393714263,1762943441979,-4082.27230739,0.00038921,2]
[393714264,1762943441988,-1061.29459648,0.00038922,2]
[393714265,1762943441997,-168.0,0.00038924,2]
[393714266,1762943442007,-168.0,0.0003899,7]
[393714267,1762943442019,-210.0,0.00038991,7]
[393714268,1762943442029,-244.0,0.00039,2]
[393714269,1762943442039,-1000.0,0.00039,120]
[393714270,1762943442048,-2000.0,0.00039005,3]
[393714271,1762943442058,-4082.27230739,0.00039014,2]
[393714272,1762943442067,-1061.29459648,0.00039015,2]
[393714273,1762943442077,-181.68885836,0.00039078,2]
[393714274,1762943442086,-5000.0,0.00039078,30]
[393714275,1762943442095,-1500.0,0.000391,29]
[393714276,1762943442105,-320.79738504,0.00039101,2]
[393714277,1762943442115,-1061.29459648,0.00039108,2]
[393714278,1762943442124,-4082.27230739,0.00039108,2]
[393714279,1762943442133,-293.82919058,0.00039108,2]
[393714280,1762943442143,-164.48213506,0.00039108,2]
[393714281,1762943442152,-170.32527931,0.00039108,7]
[393714282,1762943442163,-150.0,0.00039121,10]
[393714283,1762943442172,-262.41057865,0.00039121,10]
[393714284,1762943442181,-150.0,0.00039121,2]
[393714285,1762943442193,-150.0,0.00039121,10]
[393714286,1762943442202,-150.0,0.00039121,60]
[393714287,1762943442211,-150.0,0.00039121,2]
[393714288,1762943442221,-150.0,0.00039121,2]
[393714289,1762943442230,-536.0,0.00039121,2]
[393714290,1762943442240,-150.0,0.00039121,2]
[393714291,1762943442250,-150.0,0.00039121,2]
[393714292,1762943442260,-153.59012997,0.00039123,30]
[393714293,1762943442270,-172.88753641,0.00039168,2]
[393714294,1762943442279,-161.31426345,0.00039173,2]
[393714295,1762943442288,-208.71,0.00039177,7]
[393714296,1762943442298,-500.0,0.00039177,120]
[393714297,1762943442307,-999.0,0.00039177,120]
[393714298,1762943442316,-24619.92455852,0.00039178,29]
[393714299,1762943442327,-1251.0,0.00039178,5]
[393714300,1762943442336,-500.0,0.00039178,20]
[393714301,1762943442344,-500.0,0.00039178,20]
[393714302,1762943442353,-500.0,0.00039178,20]
[393714303,1762943442362,-500.0,0.00039178,20]
[393714304,1762943442371,-500.0,0.00039178,20]
[393714305,1762943442380,-500.0,0.00039178,20]
[393714306,1762943442390,-500.0,0.00039178,20]
[393714307,1762943442409,-500.0,0.00039178,20]
[393714308,1762943442419,-592.55,0.00039178,20]
[393714309,1762943442429,-592.55,0.00039178,20]
[393714310,1762943442440,-592.55,0.00039178,20]
[393714311,1762943442454,-592.55,0.00039178,20]
[393714312,1762943442464,-500.0,0.00039178,20]
[393714313,1762943442474,-500.0,0.00039178,20]
[393714314,1762943442483,-500.0,0.00039178,20]
[393714315,1762943442494,-500.0,0.00039178,20]
[393714316,1762943442503,-500.0,0.00039178,20]
[393714317,1762943442513,-500.0,0.00039178,20]
[393714318,1762943442524,-598.27942864,0.00039178,20]
[393714319,1762943442535,-193.3,0.00039178,20]
[393714320,1762943442545,-500.0,0.00039178,20]
[393714321,1762943442554,-564.39678099,0.00039178,20]
[393714322,1762943442563,-603.03767579,0.00039178,20]
[393714323,1762943442575,-500.0,0.00039178,20]
[393714324,1762943442585,-231.2781194,0.00039178,20]
[393714325,1762943442594,-645.35802261,0.00039178,20]
[393714326,1762943442603,-500.0,0.00039178,20]
[393714327,1762943442612,-500.0,0.00039178,20]
[393714328,1762943442622,-500.0,0.00039178,20]
[393714329,1762943442631,-500.0,0.00039178,20]
[393714330,1762943442641,-500.0,0.00039178,20]
[393714331,1762943442650,-500.0,0.00039178,20]
[393714332,1762943442659,-355.31274548,0.00039178,20]
[393714333,1762943442669,-500.0,0.00039178,20]
[393714334,1762943442679,-500.0,0.00039178,20]
[393714335,1762943442689,-500.0,0.00039178,20]
[393714336,1762943442699,-500.0,0.00039178,20]
[393714337,1762943442708,-500.0,0.00039178,20]
[393714338,1762943442719,-614.18394567,0.00039178,20]
[393714339,1762943442728,-500.0,0.00039178,20]
[393714340,1762943442738,-500.0,0.00039178,20]
[393714341,1762943442747,-500.0,0.00039178,20]
[393714342,1762943442757,-500.0,0.00039178,20]
[393714343,1762943442766,-500.0,0.00039178,20]
[393714344,1762943442776,-500.0,0.00039178,20]
[393714345,1762943442785,-500.0,0.00039178,20]
[393714346,1762943442795,-500.0,0.00039178,20]
[393714347,1762943442804,-317.59593302,0.00039178,20]
[393714348,1762943442814,-590.2800355,0.00039178,20]
[393714349,1762943442823,-500.0,0.00039178,20]
[393714350,1762943442832,-500.0,0.00039178,20]
[393714351,1762943442842,-500.0,0.00039178,20]
[393714352,1762943442851,-262.57326994,0.00039178,20]
[393714353,1762943442860,-348.78017763,0.00039178,20]
[393714354,1762943442869,-509.67054633,0.00039178,20]
[393714355,1762943442878,-313.7100691,0.00039178,20]
[393714356,1762943442888,-500.0,0.00039178,20]
[393714357,1762943442897,-500.0,0.00039178,20]
[393714358,1762943442907,-335.18731789,0.00039178,20]
[393714359,1762943442917,-500.0,0.00039178,20]
[393714360,1762943442926,-500.0,0.00039178,20]
[393714361,1762943442935,-500.0,0.00039178,20]
[393714362,1762943442946,-500.0,0.00039178,20]
[393714363,1762943442960,-500.0,0.00039178,20]
[393714364,1762943442970,-500.0,0.00039178,20]
[393714366,1762943443067,-310.79747451,0.00039178,20]
[393714367,1762943443077,-500.0,0.00039178,20]
[393714368,1762943443086,-500.0,0.00039178,7]
[393714369,1762943443096,-500.0,0.00039178,7]
[393714370,1762943443105,-500.0,0.00039178,7]
[393714371,1762943443116,-500.0,0.00039178,7]
[393714372,1762943443126,-500.0,0.00039178,20]
[393714373,1762943443135,-500.0,0.00039178,20]
[393714374,1762943443145,-500.0,0.00039178,20]
[393714375,1762943443154,-500.0,0.00039178,20]
[393714376,1762943443163,-500.0,0.00039178,20]
[393714377,1762943443173,-500.0,0.00039178,20]
[393714378,1762943443183,-500.0,0.00039178,20]
[393714379,1762943443194,-277.41979462,0.00039178,20]
[393714380,1762943443203,-500.0,0.00039178,20]
[393714381,1762943443212,-500.0,0.00039178,20]
[393714382,1762943443222,-500.0,0.00039178,20]
[393714383,1762943443232,-500.0,0.00039178,20]
[393714384,1762943443241,-548.38564326,0.00039178,20]
[393714386,1762943443250,-522.73036842,0.00039178,20]
[393714388,1762943443259,-374.64325359,0.00039178,20]
[393714389,1762943443268,-500.0,0.00039178,20]
[393714390,1762943443278,-500.0,0.00039178,20]
[393714391,1762943443287,-500.0,0.00039178,20]
[393714392,1762943443296,-455.74694648,0.00039178,20]
[393714393,1762943443306,-500.0,0.00039178,20]
[393714394,1762943443316,-500.0,0.00039178,20]
[393714395,1762943443325,-500.0,0.00039178,20]
[393714396,1762943443335,-500.0,0.00039178,20]
[393714397,1762943443345,-500.0,0.00039178,20]
[393714398,1762943443354,-1000.0,0.00039178,20]
[393714399,1762943443363,-1000.0,0.00039178,20]
[393714400,1762943443373,-500.0,0.00039178,20]
[393714401,1762943443382,-500.0,0.00039178,20]
[393714402,1762943443392,-500.0,0.00039178,20]
[393714403,1762943443401,-500.0,0.00039178,20]
[393714404,1762943443411,-500.0,0.00039178,20]
[393714405,1762943443419,-500.0,0.00039178,20]
[393714406,1762943443428,-303.23110708,0.00039178,20]
[393714407,1762943443439,-500.0,0.00039178,20]
[393714408,1762943443453,-500.0,0.00039178,20]
[393714409,1762943443462,-569.57285674,0.00039178,20]
[393714410,1762943443472,-500.0,0.00039178,20]
[393714411,1762943443483,-500.0,0.00039178,20]
[393714412,1762943443493,-500.0,0.00039178,20]
[393714413,1762943443502,-500.0,0.00039178,20]
[393714414,1762943443511,-580.60341195,0.00039178,20]
[393714415,1762943443522,-500.0,0.00039178,20]
[393714416,1762943443532,-500.0,0.00039178,20]
[393714417,1762943443541,-500.0,0.00039178,20]
[393714418,1762943443550,-500.0,0.00039178,20]
[393714419,1762943443559,-500.0,0.00039178,20]
[393714420,1762943443568,-500.0,0.00039178,20]
[393714421,1762943443578,-500.0,0.00039178,20]
[393714422,1762943443587,-592.79290158,0.00039178,20]
[393714423,1762943443596,-500.0,0.00039178,20]
[393714424,1762943443605,-456.87492739,0.00039178,20]
[393714425,1762943443615,-500.0,0.00039178,20]
[393714426,1762943443625,-500.0,0.00039178,20]
[393714427,1762943443635,-500.0,0.00039178,20]
[393714428,1762943443644,-500.0,0.00039178,20]
[393714429,1762943443653,-500.0,0.00039178,20]
[393714430,1762943443662,-500.0,0.00039178,20]
[393714431,1762943443671,-500.0,0.00039178,20]
[393714432,1762943443680,-500.0,0.00039178,20]
[393714433,1762943443690,-648.99767454,0.00039178,20]
[393714434,1762943443699,-500.0,0.00039178,20]
[393714435,1762943443708,-595.93721469,0.00039178,20]
[393714436,1762943443717,-500.0,0.00039178,20]
[393714437,1762943443726,-201.04093381,0.00039178,20]
[393714438,1762943443735,-425.06330441,0.00039178,20]
[393714439,1762943443744,-500.0,0.00039178,20]
[393714440,1762943443754,-153.23174787,0.00039178,20]
[393714441,1762943443762,-500.0,0.00039178,20]
[393714442,1762943443771,-500.0,0.00039178,20]
[393714443,1762943443780,-500.0,0.00039178,20]
[393714444,1762943443789,-500.0,0.00039178,20]
[393714445,1762943443798,-500.0,0.00039178,20]
[393714446,1762943443807,-500.0,0.00039178,20]
[393714447,1762943443816,-500.0,0.00039178,20]
[393714448,1762943443825,-500.0,0.00039178,20]
[393714449,1762943443834,-500.0,0.00039178,20]
[393714450,1762943443843,-500.0,0.00039178,20]
[393714451,1762943443852,-500.0,0.00039178,20]
[393714452,1762943443861,-500.0,0.00039178,20]
[393714453,1762943443870,-500.0,0.00039178,20]
[393714454,1762943443879,-500.0,0.00039178,20]
[393714455,1762943443888,-500.0,0.00039178,20]
[393714456,1762943443897,-511.08645152,0.00039178,20]
[393714457,1762943443907,-502.46904162,0.00039178,20]
[393714458,1762943443916,-500.0,0.00039178,20]
[393714459,1762943443925,-500.0,0.00039178,20]
[393714460,1762943443933,-500.0,0.00039178,20]
[393714461,1762943443942,-500.0,0.00039178,20]
[393714462,1762943443951,-500.0,0.00039178,20]
[393714463,1762943443961,-500.0,0.00039178,20]
[393714464,1762943443970,-500.0,0.00039178,20]
[393714465,1762943443979,-500.0,0.00039178,20]
[393714466,1762943443987,-500.0,0.00039178,20]
[393714467,1762943443996,-500.0,0.00039178,20]
[393714468,1762943444005,-246.37340218,0.00039178,20]
[393714469,1762943444015,-500.0,0.00039178,20]
[393714470,1762943444024,-500.0,0.00039178,20]
[393714471,1762943444033,-500.0,0.00039178,20]
[393714472,1762943444042,-278.59524416,0.00039178,20]
[393714473,1762943444051,-500.0,0.00039178,20]
[393714474,1762943444060,-500.0,0.00039178,20]
[393714475,1762943444072,-500.0,0.00039178,20]
[393714476,1762943444082,-593.1313449,0.00039178,20]
[393714477,1762943444091,-500.0,0.00039178,20]
[393714478,1762943444101,-396.12489678,0.00039178,20]
[393714479,1762943444110,-500.0,0.00039178,2]
[393714480,1762943444119,-500.0,0.00039178,2]
[393714481,1762943444128,-500.0,0.00039178,2]
[393714482,1762943444137,-296.64367984,0.00039178,20]
[393714483,1762943444146,-500.0,0.00039178,2]
[393714484,1762943444155,-500.0,0.00039178,7]
[393714485,1762943444165,-297.55884697,0.00039178,2]
[393714486,1762943444174,-500.0,0.00039178,7]
[393714487,1762943444183,-500.0,0.00039178,20]
[393714488,1762943444193,-500.0,0.00039178,20]
[393714489,1762943444202,-500.0,0.00039178,20]
[393714490,1762943444211,-590.09658189,0.00039178,20]
[393714491,1762943444221,-500.0,0.00039178,20]
[393714492,1762943444231,-500.0,0.00039178,20]
[393714493,1762943444241,-500.0,0.00039178,20]
[393714494,1762943444250,-334.23095053,0.00039178,20]
[393714495,1762943444259,-500.0,0.00039178,20]
[393714496,1762943444269,-530.05485785,0.00039178,20]
[393714497,1762943444278,-437.18417214,0.00039178,20]
[393714498,1762943444287,-582.9632087,0.00039178,20]
[393714499,1762943444297,-500.0,0.00039178,20]
[393714500,1762943444307,-500.0,0.00039178,20]
[393714501,1762943444317,-521.28948922,0.00039178,20]
[393714502,1762943444326,-500.0,0.00039178,20]
[393714503,1762943444335,-500.0,0.00039178,20]
[393714504,1762943444344,-500.0,0.00039178,20]
[393714505,1762943444353,-500.0,0.00039178,20]
[393714506,1762943444363,-500.0,0.00039178,20]
[393714507,1762943444372,-500.0,0.00039178,20]
[393714508,1762943444382,-218.69351316,0.00039178,20]
[393714509,1762943444391,-500.0,0.00039178,20]
[393714510,1762943444400,-500.0,0.00039178,20]
[393714511,1762943444409,-500.0,0.00039178,20]
[393714512,1762943444418,-500.0,0.00039178,20]
[393714513,1762943444428,-556.95349104,0.00039178,20]
[393714514,1762943444438,-500.0,0.00039178,20]
[393714515,1762943444450,-619.99949363,0.00039178,20]
[393714516,1762943444460,-500.0,0.00039178,20]
[393714517,1762943444469,-500.0,0.00039178,20]
[393714518,1762943444477,-500.0,0.00039178,20]
[393714519,1762943444486,-500.0,0.00039178,20]
[393714520,1762943444496,-516.89105436,0.00039178,20]
[393714521,1762943444506,-500.0,0.00039178,2]
[393714522,1762943444516,-500.0,0.00039178,2]
[393714523,1762943444526,-500.0,0.00039178,20]
[393714524,1762943444535,-500.0,0.00039178,2]
[393714525,1762943444544,-500.0,0.00039178,2]
[393714526,1762943444554,-500.0,0.00039178,20]
[393714527,1762943444563,-500.0,0.00039178,2]
[393714528,1762943444572,-500.0,0.00039178,20]
[393714529,1762943444581,-205.64135259,0.00039178,20]
[393714530,1762943444590,-562.34543848,0.00039178,20]
[393714531,1762943444599,-500.0,0.00039178,20]
[393714532,1762943444608,-500.0,0.00039178,20]
[393714533,1762943444617,-500.0,0.00039178,20]
[393714534,1762943444627,-378.9405884,0.00039178,2]
[393714535,1762943444635,-500.0,0.00039178,20]
[393714536,1762943444645,-500.0,0.00039178,20]
[393714537,1762943444654,-500.0,0.00039178,20]
[393714538,1762943444663,-515.56562059,0.00039178,20]
[393714539,1762943444673,-238.85971584,0.00039178,20]
[393714540,1762943444682,-540.72242599,0.00039178,20]
[393714541,1762943444694,-500.0,0.00039178,20]
[393714542,1762943444703,-500.0,0.00039178,20]
[393714543,1762943444712,-500.0,0.00039178,20]
[393714544,1762943444722,-500.0,0.00039178,20]
[393714545,1762943444731,-500.0,0.00039178,20]
[393714546,1762943444739,-508.51267122,0.00039178,20]
[393714547,1762943444747,-570.79896627,0.00039178,20]
[393714548,1762943444756,-500.0,0.00039178,20]
[393714549,1762943444766,-500.0,0.00039178,20]
[393714550,1762943444775,-500.0,0.00039178,20]
[393714551,1762943444784,-460.0,0.00039178,20]
[393714552,1762943444793,-500.0,0.00039178,20]
[393714553,1762943444803,-500.0,0.00039178,20]
[393714554,1762943444812,-500.0,0.00039178,20]
[393714555,1762943444821,-500.0,0.00039178,20]
[393714556,1762943444831,-622.315854,0.00039178,20]
[393714557,1762943444840,-500.0,0.00039178,20]
[393714558,1762943444850,-500.0,0.00039178,20]
[393714559,1762943444859,-399.18405703,0.00039178,20]
[393714560,1762943444868,-500.0,0.00039178,20]
[393714561,1762943444878,-500.0,0.00039178,20]
[393714562,1762943444887,-500.0,0.00039178,20]
[393714563,1762943444897,-173.76508535,0.00039178,20]
[393714564,1762943444906,-500.0,0.00039178,20]
[393714565,1762943444916,-190.06735362,0.00039178,20]
[393714566,1762943444925,-500.0,0.00039178,20]
[393714567,1762943444937,-500.0,0.00039178,20]
[393714568,1762943444947,-500.0,0.00039178,20]
[393714569,1762943444956,-233.67058451,0.00039178,20]
[393714570,1762943444965,-500.0,0.00039178,20]
[393714571,1762943444975,-500.0,0.00039178,20]
[393714572,1762943444984,-500.0,0.00039178,20]
[393714573,1762943444994,-500.0,0.00039178,20]
[393714574,1762943445004,-500.0,0.00039178,20]
[393714575,1762943445013,-500.0,0.00039178,20]
[393714576,1762943445023,-500.0,0.00039178,20]
[393714577,1762943445032,-500.0,0.00039178,20]
[393714578,1762943445041,-500.0,0.00039178,20]
[393714579,1762943445051,-500.0,0.00039178,20]
[393714580,1762943445066,-500.0,0.00039178,20]
[393714581,1762943445076,-500.0,0.00039178,20]
[393714582,1762943445085,-500.0,0.00039178,20]
[393714583,1762943445095,-500.0,0.00039178,20]
[393714584,1762943445105,-500.0,0.00039178,20]
[393714585,1762943445115,-500.0,0.00039178,20]
[393714586,1762943445124,-636.26,0.00039178,20]
[393714587,1762943445134,-636.26,0.00039178,20]
[393714588,1762943445144,-636.26,0.00039178,20]
[393714589,1762943445153,-500.0,0.00039178,20]
[393714590,1762943445163,-636.26,0.00039178,20]
[393714591,1762943445172,-482.9157634,0.00039178,20]
[393714592,1762943445181,-636.26,0.00039178,20]
[393714593,1762943445192,-172.62900837,0.00039178,20]
[393714594,1762943445202,-475.17215308,0.00039178,20]
[393714595,1762943445211,-373.30798458,0.00039178,20]
[393714596,1762943445221,-500.0,0.00039178,20]
[393714597,1762943445230,-500.0,0.00039178,20]
[393714598,1762943445240,-500.0,0.00039178,20]
[393714599,1762943445250,-500.0,0.00039178,20]
[393714600,1762943445260,-308.43517065,0.00039178,20]
[393714601,1762943445269,-500.0,0.00039178,20]
[393714602,1762943445279,-500.0,0.00039178,20]
[393714603,1762943445289,-500.0,0.00039178,20]
[393714604,1762943445298,-500.0,0.00039178,20]
[393714605,1762943445308,-202.67679593,0.00039178,20]
[393714606,1762943445318,-500.0,0.00039178,20]
[393714607,1762943445328,-600.74117724,0.00039178,20]
[393714608,1762943445337,-500.0,0.00039178,20]
[393714609,1762943445347,-500.0,0.00039178,20]
[393714610,1762943445357,-500.0,0.00039178,20]
[393714611,1762943445366,-500.0,0.00039178,20]
[393714612,1762943445376,-500.0,0.00039178,20]
[393714613,1762943445385,-588.23388764,0.00039178,20]
[393714614,1762943445394,-500.0,0.00039178,20]
[393714615,1762943445404,-396.06211683,0.00039178,20]
[393714616,1762943445413,-500.0,0.00039178,20]
[393714617,1762943445423,-500.0,0.00039178,20]
[393714618,1762943445432,-500.0,0.00039178,20]
[393714619,1762943445443,-500.0,0.00039178,20]
[393714620,1762943445456,-500.0,0.00039178,20]
[393714621,1762943445466,-500.0,0.00039178,20]
[393714622,1762943445478,-500.0,0.00039178,20]
[393714623,1762943445489,-500.0,0.00039178,20]
[393714624,1762943445499,-360.28273532,0.00039178,20]
[393714625,1762943445509,-431.73463081,0.00039178,20]
[393714626,1762943445519,-500.0,0.00039178,20]
[393714627,1762943445529,-262.76800997,0.00039178,20]
[393714628,1762943445539,-500.0,0.00039178,20]
[393714629,1762943445548,-196.87296268,0.00039178,20]
[393714630,1762943445558,-500.0,0.00039178,20]
[393714631,1762943445567,-500.0,0.00039178,20]
[393714632,1762943445577,-500.0,0.00039178,20]
[393714633,1762943445587,-500.0,0.00039178,20]
[393714634,1762943445596,-500.0,0.00039178,20]
[393714635,1762943445606,-500.0,0.00039178,20]
[393714636,1762943445616,-209.28210856,0.00039178,20]
[393714637,1762943445631,-500.0,0.00039178,20]
[393714638,1762943445641,-500.0,0.00039178,20]
[393714639,1762943445650,-500.0,0.00039178,20]
[393714640,1762943445659,-500.0,0.00039178,20]
[393714641,1762943445669,-500.0,0.00039178,20]
[393714642,1762943445679,-500.0,0.00039178,20]
[393714643,1762943445689,-500.0,0.00039178,20]
[393714644,1762943445698,-500.0,0.00039178,20]
[393714645,1762943445708,-500.0,0.00039178,20]
[393714646,1762943445718,-500.0,0.00039178,20]
[393714647,1762943445728,-500.0,0.00039178,20]
[393714648,1762943445737,-500.0,0.00039178,20]
[393714649,1762943445748,-500.0,0.00039178,20]
[393714650,1762943445757,-500.0,0.00039178,20]
[393714651,1762943445767,-500.0,0.00039178,20]
[393714652,1762943445776,-500.0,0.00039178,20]
[393714653,1762943445786,-304.9513524,0.00039178,20]
[393714654,1762943445795,-500.0,0.00039178,20]
[393714655,1762943445805,-500.0,0.00039178,20]
[393714656,1762943445815,-356.33574389,0.00039178,20]
[393714657,1762943445824,-500.0,0.00039178,20]
[393714658,1762943445833,-500.0,0.00039178,20]
[393714659,1762943445843,-462.54048508,0.00039178,20]
[393714660,1762943445853,-500.0,0.00039178,20]
[393714661,1762943445862,-310.33541317,0.00039178,20]
[393714662,1762943445872,-500.0,0.00039178,20]
[393714663,1762943445881,-500.0,0.00039178,20]
[393714665,1762943445892,-500.0,0.00039178,20]
[393714667,1762943445901,-500.0,0.00039178,20]
[393714669,1762943445911,-500.0,0.00039178,20]
[393714671,1762943445921,-500.0,0.00039178,20]
[393714672,1762943445932,-500.0,0.00039178,20]
[393714673,1762943445943,-500.0,0.00039178,20]
[393714674,1762943445952,-500.0,0.00039178,20]
[393714675,1762943445962,-500.0,0.00039178,20]
[393714676,1762943445971,-500.0,0.00039178,20]
[393714677,1762943445980,-500.0,0.00039178,20]
[393714678,1762943445990,-500.0,0.00039178,20]